fUST/lending_fUST_20250609
["ID","MTS","AMOUNT","RATE_DAILY","PERIOD"]
[365121984,1749477041642,-440.0,0.00022191,4]
[365121986,1749477041653,-440.0,0.00022191,4]
[365121988,1749477041662,-1986.09,0.00022191,4]
[365121990,1749477041671,-2166.67,0.00022191,4]
[365121991,1749477041680,-534.37,0.00022191,4]
[365121993,1749477041690,-1134.73,0.00022191,4]
[365121995,1749477041704,-410.0,0.00022191,4]
[365121996,1749477041714,-440.0,0.00022191,4]
[365121998,1749477041723,-476.63,0.00022191,4]
[365122000,1749477041732,-2895.37,0.00022191,4]
[365122001,1749477041741,-803.7,0.00022191,4]
[365122003,1749477041750,-440.0,0.00022191,4]
[365122005,1749477041759,-440.0,0.00022191,4]
[365122006,1749477041769,-420.70560515,0.00022191,4]
[365122008,1749477041778,-451.34230826,0.00022191,4]
[365122010,1749477041787,-440.0,0.00022191,4]
[365122011,1749477041797,-440.0,0.00022191,4]
[365122012,1749477041807,-5189.41,0.00022191,4]
[365122013,1749477041816,-5488.53,0.00022191,4]
[365122014,1749477041826,-4040.71,0.00022191,4]
[365122022,1749477041927,-440.0,0.00022191,4]
[365122024,1749477041937,-4634.71,0.00022191,4]
[365122026,1749477041948,-505.2,0.00022191,4]
[365122028,1749477041957,-813.91,0.00022191,4]
[365122030,1749477041967,-1278.93,0.00022191,4]
[365122032,1749477041976,-440.0,0.00022191,4]
[365122034,1749477041986,-440.0,0.00022191,4]
[365122036,1749477041995,-1111.71,0.00022191,4]
[365122038,1749477042005,-440.0,0.00022191,4]
[365122039,1749477042014,-616.96,0.00022191,4]
[365122041,1749477042023,-440.0,0.00022191,4]
[365122043,1749477042032,-1926.99,0.00022191,4]
[365122046,1749477042042,-691.44,0.00022191,4]
[365122047,1749477042051,-440.0,0.00022191,4]
[365122049,1749477042061,-461.24,0.00022191,4]
[365122051,1749477042070,-440.0,0.00022191,4]
[365122053,1749477042080,-767.06,0.00022191,4]
[365122055,1749477042089,-440.0,0.00022191,4]
[365122057,1749477042099,-440.0,0.00022191,4]
[365122059,1749477042109,-440.0,0.00022191,4]
[365122061,1749477042118,-2286.41,0.00022191,4]
[365122063,1749477042128,-537.17,0.00022191,4]
[365122065,1749477042137,-2033.87,0.00022191,4]
[365122067,1749477042146,-440.0,0.00022191,4]
[365122069,1749477042156,-843.42,0.00022191,4]
[365122071,1749477042165,-440.0,0.00022191,4]
[365122073,1749477042175,-557.97,0.00022191,4]
[365122075,1749477042184,-440.0,0.00022191,4]
[365122077,1749477042194,-440.0,0.00022191,4]
[365122079,1749477042203,-2059.96,0.00022191,4]
[365122081,1749477042213,-840.31,0.00022191,4]
[365122083,1749477042223,-924.28,0.00022191,4]
[365122085,1749477042232,-277.87887871,0.00022191,4]
[365122087,1749477042242,-9439.38,0.00022191,4]
[365122089,1749477042251,-440.0,0.00022191,4]
[365122091,1749477042262,-440.0,0.00022191,4]
[365122093,1749477042272,-440.0,0.00022191,4]
[365122095,1749477042282,-1133.61,0.00022191,4]
[365122097,1749477042292,-3861.59,0.00022191,4]
[365122099,1749477042302,-440.0,0.00022191,4]
[365122101,1749477042312,-789.8,0.00022191,4]
[365122103,1749477042323,-4323.6,0.00022191,4]
[365122105,1749477042333,-1123.87,0.00022191,4]
[365122107,1749477042342,-440.0,0.00022191,4]
[365122110,1749477042352,-440.0,0.00022191,4]
[365122113,1749477042363,-589.75,0.00022191,4]
[365122116,1749477042372,-440.0,0.00022191,4]
[365122118,1749477042382,-1966.76,0.00022191,4]
[365122120,1749477042392,-836.43,0.00022191,4]
[365122122,1749477042401,-440.0,0.00022191,4]
[365122124,1749477042410,-570.07,0.00022191,4]
[365122126,1749477042420,-440.0,0.00022191,4]
[365122128,1749477042431,-787.22,0.00022191,4]
[365122130,1749477042442,-440.0,0.00022191,4]
[365122132,1749477042451,-605.35301088,0.0002221,6]
[365122134,1749477042461,-605.35301088,0.00022314,7]
[365122136,1749477042472,-160.0,0.00022375,2]
[365122138,1749477042482,-424.05420114,0.00022375,2]
[365122141,1749477042492,-842.5625,0.00022375,2]
[365122143,1749477042501,-213.08899333,0.00022375,2]
[365122145,1749477042512,-160.0,0.00022375,2]
[365122148,1749477042521,-834.7738823,0.00022375,2]
[365122150,1749477042531,-229.64266968,0.00022375,2]
[365122152,1749477042541,-160.0,0.00022375,2]
[365122154,1749477042551,-160.0,0.00022375,2]
[365122157,1749477042565,-11856.04170836,0.00022379,2]
[365122158,1749477042575,-200.0,0.000224,2]
[365122161,1749477042585,-200.0,0.000224,3]
[365122163,1749477042595,-347.0,0.00022416,2]
[365122164,1749477042604,-605.35301088,0.00022417,7]
[365122167,1749477042617,-685.0,0.00022426,4]
[365122168,1749477042626,-16000.0,0.00022445,2]
[365122170,1749477042638,-500.0,0.0002246,3]
[365122173,1749477042650,-13951.73643741,0.00022465,2]
[365122175,1749477042660,-7741.53693146,0.00022465,2]
[365122176,1749477042670,-440.0,0.00022465,4]
[365122178,1749477042680,-440.0,0.00022465,4]
[365122180,1749477042689,-440.0,0.00022465,4]
[365122182,1749477042699,-440.0,0.00022465,4]
[365122184,1749477042709,-440.0,0.00022465,4]
[365122186,1749477042719,-290.89389746,0.00022465,4]
[365122188,1749477042730,-440.0,0.00022465,4]
[365122190,1749477042739,-440.0,0.00022465,4]
[365122192,1749477042749,-440.0,0.00022465,4]
[365122194,1749477042758,-440.0,0.00022465,4]
[365122196,1749477042768,-500.0,0.00022465,4]
[365122197,1749477042777,-751.88,0.00022465,4]
[365122198,1749477042788,-502.12,0.00022465,4]
[365122199,1749477042797,-440.0,0.00022465,4]
[365122201,1749477042807,-440.0,0.00022465,4]
[365122202,1749477042817,-660.34,0.00022465,4]
[365122204,1749477042827,-440.0,0.00022465,4]
[365122206,1749477042837,-404.32344527,0.00022465,4]
[365122208,1749477042846,-440.0,0.00022465,4]
[365122210,1749477042858,-440.0,0.00022465,4]
[365122213,1749477042868,-440.0,0.00022465,4]
[365122215,1749477042878,-440.0,0.00022465,4]
[365122217,1749477042887,-367.22,0.00022465,4]
[365122219,1749477042897,-440.0,0.00022465,4]
[365122221,1749477042908,-159.14307656,0.00022465,4]
[365122223,1749477042917,-440.0,0.00022465,4]
[365122225,1749477042927,-440.0,0.00022465,4]
[365122227,1749477042936,-388.40528453,0.00022465,4]
[365122229,1749477042946,-440.0,0.00022465,4]
[365122231,1749477042955,-440.0,0.00022465,4]
[365122233,1749477042965,-440.0,0.00022465,4]
[365122235,1749477042974,-440.0,0.00022465,4]
[365122237,1749477042984,-445.6,0.00022465,2]
[365122239,1749477042993,-440.0,0.00022465,4]
[365122241,1749477043003,-440.0,0.00022465,4]
[365122243,1749477043013,-440.0,0.00022465,4]
[365122245,1749477043022,-440.0,0.00022465,4]
[365122247,1749477043031,-440.0,0.00022465,4]
[365122249,1749477043041,-440.0,0.00022465,4]
[365122250,1749477043051,-440.0,0.00022465,4]
[365122252,1749477043061,-812.89,0.00022465,4]
[365122254,1749477043071,-440.0,0.00022465,4]
[365122256,1749477043080,-440.0,0.00022465,4]
[365122257,1749477043089,-1986.09,0.00022465,4]
[365122258,1749477043099,-2166.67,0.00022465,4]
[365122259,1749477043110,-534.37,0.00022465,4]
[365122260,1749477043119,-1134.73,0.00022465,4]
[365122261,1749477043129,-440.0,0.00022465,4]
[365122262,1749477043140,-400.0,0.00022465,2]
[365122263,1749477043149,-400.0,0.00022465,2]
[365122264,1749477043159,-400.0,0.00022465,2]
[365122265,1749477043169,-476.63,0.00022465,4]
[365122266,1749477043178,-2895.37,0.00022465,4]
[365122267,1749477043188,-803.7,0.00022465,4]
[365122268,1749477043197,-420.59528938,0.00022465,4]
[365122269,1749477043207,-440.0,0.00022465,4]
[365122270,1749477043217,-440.0,0.00022465,4]
[365122271,1749477043227,-440.0,0.00022465,4]
[365122272,1749477043237,-5189.41,0.00022465,4]
[365122273,1749477043247,-5488.53,0.00022465,4]
[365122274,1749477043257,-4040.71,0.00022465,4]
[365122275,1749477043266,-440.0,0.00022465,4]
[365122276,1749477043275,-4634.71,0.00022465,4]
[365122277,1749477043285,-505.2,0.00022465,4]
[365122278,1749477043295,-813.91,0.00022465,4]
[365122279,1749477043305,-1278.93,0.00022465,4]
[365122280,1749477043315,-440.0,0.00022465,4]
[365122281,1749477043324,-440.0,0.00022465,4]
[365122282,1749477043334,-1111.71,0.00022465,4]
[365122283,1749477043344,-390.0,0.00022465,4]
[365122284,1749477043355,-616.96,0.00022465,4]
[365122285,1749477043364,-440.0,0.00022465,4]
[365122286,1749477043375,-1926.99,0.00022465,4]
[365122287,1749477043385,-691.44,0.00022465,4]
[365122288,1749477043397,-440.0,0.00022465,4]
[365122289,1749477043407,-461.24,0.00022465,4]
[365122290,1749477043417,-440.0,0.00022465,4]
[365122291,1749477043427,-767.06,0.00022465,4]
[365122292,1749477043437,-440.0,0.00022465,4]
[365122293,1749477043447,-440.0,0.00022465,4]
[365122294,1749477043457,-440.0,0.00022465,4]
[365122295,1749477043467,-2286.41,0.00022465,4]
[365122296,1749477043477,-537.17,0.00022465,4]
[365122297,1749477043488,-2033.87,0.00022465,4]
[365122298,1749477043498,-440.0,0.00022465,4]
[365122299,1749477043508,-843.42,0.00022465,4]
[365122300,1749477043517,-440.0,0.00022465,4]
[365122301,1749477043527,-557.97,0.00022465,4]
[365122302,1749477043538,-228.0,0.00022465,4]
[365122303,1749477043548,-440.0,0.00022465,4]
[365122304,1749477043559,-2059.96,0.00022465,4]
[365122305,1749477043571,-840.31,0.00022465,4]
[365122306,1749477043580,-924.28,0.00022465,4]
[365122308,1749477043590,-500.0,0.00022465,2]
[365122309,1749477043600,-9439.38,0.00022465,4]
[365122310,1749477043610,-326.32212784,0.00022465,4]
[365122311,1749477043619,-440.0,0.00022465,4]
[365122312,1749477043630,-440.0,0.00022465,4]
[365122313,1749477043640,-1133.61,0.00022465,4]
[365122314,1749477043650,-3861.59,0.00022465,4]
[365122315,1749477043660,-440.0,0.00022465,4]
[365122316,1749477043670,-789.8,0.00022465,4]
[365122317,1749477043680,-4323.6,0.00022465,4]
[365122318,1749477043689,-1123.87,0.00022465,4]
[365122319,1749477043699,-440.0,0.00022465,4]
[365122320,1749477043708,-440.0,0.00022465,4]
[365122321,1749477043718,-589.75,0.00022465,4]
[365122322,1749477043728,-440.0,0.00022465,4]
[365122323,1749477043737,-1966.76,0.00022465,4]
[365122324,1749477043746,-836.43,0.00022465,4]
[365122325,1749477043756,-440.0,0.00022465,4]
[365122326,1749477043766,-570.07,0.00022465,4]
[365122327,1749477043774,-440.0,0.00022465,4]
[365122328,1749477043785,-787.22,0.00022465,4]
[365122329,1749477043794,-440.0,0.00022465,4]
[365122330,1749477043803,-500.0,0.00022473,2]
[365122331,1749477043812,-503.48503408,0.00022473,2]
[365122332,1749477043822,-500.0,0.00022473,2]
[365122333,1749477043831,-500.0,0.00022473,2]
[365122334,1749477043841,-500.0,0.00022473,2]
[365122335,1749477043851,-500.0,0.00022473,2]
[365122336,1749477043861,-734.23,0.00022498,5]
[365122337,1749477043871,-1040.0,0.000225,4]
[365122338,1749477043963,-1001.05370523,0.000225,2]
[365122339,1749477043973,-500.0,0.000225,2]
[365122340,1749477043982,-291.57531219,0.00022502,2]
[365122341,1749477043992,-503.87350031,0.00022521,2]
[365122342,1749477044003,-1021.66822977,0.00022521,2]
[365122343,1749477044013,-506.45617297,0.00022521,2]
[365122344,1749477044023,-605.35301088,0.00022521,7]
[365122345,1749477044032,-637.73190418,0.00022557,2]
[365122346,1749477044041,-734.23,0.00022598,5]
[365122347,1749477044051,-646.91,0.000226,7]
[365122348,1749477044061,-441.0,0.00022623,2]
[365122349,1749477044070,-605.35301088,0.00022624,7]
[365122350,1749477044080,-2446.25076529,0.00022643,2]
[365122351,1749477044091,-1688.0,0.00022643,2]
[365122352,1749477044100,-500.0,0.00022643,2]
[365122353,1749477044111,-500.0,0.00022643,2]
[365122354,1749477044121,-500.0,0.00022643,2]
[365122355,1749477044131,-500.0,0.00022643,2]
[365122356,1749477044141,-500.0,0.00022643,2]
[365122357,1749477044151,-500.0,0.00022643,2]
[365122358,1749477044160,-500.0,0.00022643,2]
[365122359,1749477044170,-500.0,0.00022643,2]
[365122360,1749477044179,-500.0,0.00022643,2]
[365122361,1749477044189,-500.0,0.00022643,2]
[365122362,1749477044199,-500.0,0.00022643,2]
[365122363,1749477044219,-500.0,0.00022643,2]
[365122364,1749477044229,-500.0,0.00022643,2]
[365122365,1749477044238,-500.0,0.00022643,2]
[365122366,1749477044247,-500.0,0.00022643,2]
[365122367,1749477044257,-213.13631479,0.00022643,2]
[365122368,1749477044266,-207.4,0.00022643,2]
[365122369,1749477044276,-151.0,0.00022643,7]
[365122370,1749477044285,-1750.456,0.00022698,2]
[365122371,1749477044295,-734.23,0.00022698,7]
[365122372,1749477044305,-882.95750766,0.00022704,2]
[365122373,1749477044315,-605.35301088,0.00022728,7]
[365122374,1749477044324,-176.218,0.00022736,2]
[365122375,1749477044333,-440.0,0.00022739,4]
[365122376,1749477044342,-440.0,0.00022739,4]
[365122377,1749477044352,-440.0,0.00022739,4]
[365122378,1749477044364,-440.0,0.00022739,4]
[365122379,1749477044374,-440.0,0.00022739,4]
[365122380,1749477044383,-330.0,0.00022739,4]
[365122381,1749477044393,-440.0,0.00022739,4]
[365122382,1749477044403,-440.0,0.00022739,4]
[365122383,1749477044412,-440.0,0.00022739,4]
[365122384,1749477044422,-500.0,0.00022739,4]
[365122385,1749477044431,-751.88,0.00022739,4]
[365122386,1749477044441,-502.12,0.00022739,4]
[365122387,1749477044450,-440.0,0.00022739,4]
[365122388,1749477044459,-440.0,0.00022739,4]
[365122389,1749477044469,-660.34,0.00022739,4]
[365122390,1749477044480,-440.0,0.00022739,4]
[365122391,1749477044490,-440.0,0.00022739,4]
[365122392,1749477044500,-440.0,0.00022739,4]
[365122393,1749477044510,-440.0,0.00022739,4]
[365122394,1749477044520,-440.0,0.00022739,4]
[365122395,1749477044530,-390.0,0.00022739,4]
[365122396,1749477044540,-440.0,0.00022739,4]
[365122397,1749477044549,-440.0,0.00022739,4]
[365122398,1749477044563,-440.0,0.00022739,4]
[365122399,1749477044573,-440.0,0.00022739,4]
[365122400,1749477044582,-440.0,0.00022739,4]
[365122401,1749477044592,-440.0,0.00022739,4]
[365122402,1749477044602,-445.6,0.00022739,2]
[365122403,1749477044615,-440.0,0.00022739,4]
[365122404,1749477044625,-440.0,0.00022739,4]
[365122405,1749477044636,-440.0,0.00022739,4]
[365122406,1749477044646,-177.51,0.00022739,4]
[365122407,1749477044656,-440.0,0.00022739,4]
[365122408,1749477044665,-440.0,0.00022739,4]
[365122409,1749477044675,-440.0,0.00022739,4]
[365122410,1749477044685,-812.89,0.00022739,4]
[365122411,1749477044694,-440.0,0.00022739,4]
[365122412,1749477044704,-440.0,0.00022739,4]
[365122413,1749477044714,-1986.09,0.00022739,4]
[365122414,1749477044724,-2166.67,0.00022739,4]
[365122415,1749477044734,-534.37,0.00022739,4]
[365122416,1749477044743,-1134.73,0.00022739,4]
[365122417,1749477044753,-440.0,0.00022739,4]
[365122418,1749477044762,-400.0,0.00022739,2]
[365122419,1749477044771,-476.63,0.00022739,4]
[365122420,1749477044781,-2895.37,0.00022739,4]
[365122421,1749477044790,-803.7,0.00022739,4]
[365122422,1749477044800,-440.0,0.00022739,4]
[365122423,1749477044810,-330.0,0.00022739,4]
[365122424,1749477044819,-440.0,0.00022739,4]
[365122425,1749477044829,-5189.41,0.00022739,4]
[365122426,1749477044838,-5488.53,0.00022739,4]
[365122427,1749477044848,-4040.71,0.00022739,4]
[365122428,1749477044860,-440.0,0.00022739,4]
[365122429,1749477044870,-4634.71,0.00022739,4]
[365122430,1749477044880,-505.2,0.00022739,4]
[365122431,1749477044889,-813.91,0.00022739,4]
[365122432,1749477044899,-1278.93,0.00022739,4]
[365122433,1749477044909,-440.0,0.00022739,4]
[365122434,1749477044918,-440.0,0.00022739,4]
[365122435,1749477044928,-1111.71,0.00022739,4]
[365122436,1749477044937,-616.96,0.00022739,4]
[365122437,1749477044947,-440.0,0.00022739,4]
[365122438,1749477044956,-1926.99,0.00022739,4]
[365122439,1749477044965,-691.44,0.00022739,4]
[365122440,1749477044975,-461.24,0.00022739,4]
[365122441,1749477044984,-440.0,0.00022739,4]
[365122442,1749477044994,-440.0,0.00022739,4]
[365122443,1749477045003,-767.06,0.00022739,4]
[365122444,1749477045012,-440.0,0.00022739,4]
[365122445,1749477045021,-440.0,0.00022739,4]
[365122446,1749477045030,-440.0,0.00022739,4]
[365122447,1749477045039,-2286.41,0.00022739,4]
[365122448,1749477045048,-537.17,0.00022739,4]
[365122449,1749477045057,-2033.87,0.00022739,4]
[365122450,1749477045066,-440.0,0.00022739,4]
[365122451,1749477045075,-843.42,0.00022739,4]
[365122452,1749477045084,-440.0,0.00022739,4]
[365122453,1749477045093,-557.97,0.00022739,4]
[365122454,1749477045102,-440.0,0.00022739,4]
[365122455,1749477045112,-2059.96,0.00022739,4]
[365122456,1749477045121,-840.31,0.00022739,4]
[365122457,1749477045130,-924.28,0.00022739,4]
[365122458,1749477045140,-9439.38,0.00022739,4]
[365122459,1749477045149,-440.0,0.00022739,4]
[365122460,1749477045158,-440.0,0.00022739,4]
[365122461,1749477045167,-1133.61,0.00022739,4]
[365122462,1749477045176,-3861.59,0.00022739,4]
[365122463,1749477045188,-440.0,0.00022739,4]
[365122464,1749477045197,-789.8,0.00022739,4]
[365122465,1749477045206,-4323.6,0.00022739,4]
[365122466,1749477045215,-1123.87,0.00022739,4]
[365122467,1749477045225,-440.0,0.00022739,4]
[365122468,1749477045234,-440.0,0.00022739,4]
[365122469,1749477045243,-589.75,0.00022739,4]
[365122470,1749477045253,-440.0,0.00022739,4]
[365122471,1749477045262,-1966.76,0.00022739,4]
[365122472,1749477045271,-836.43,0.00022739,4]
[365122473,1749477045280,-570.07,0.00022739,4]
[365122474,1749477045289,-440.0,0.00022739,4]
[365122475,1749477045298,-440.0,0.00022739,4]
[365122476,1749477045308,-787.22,0.00022739,4]
[365122477,1749477045316,-440.0,0.00022739,4]
[365122478,1749477045326,-609.48434413,0.00022753,2]
[365122479,1749477045335,-734.23,0.00022798,5]
[365122480,1749477045344,-57165.52,0.000228,2]
[365122481,1749477045353,-605.35301088,0.00022831,8]
[365122482,1749477045366,-544.0,0.00022835,2]
[365122483,1749477045375,-420.0,0.00022842,2]
[365122484,1749477045384,-420.0,0.00022842,2]
[365122485,1749477045393,-291.57531219,0.00022845,2]
[365122486,1749477045402,-734.23,0.00022898,2]
[365122487,1749477045411,-605.35301088,0.00022934,8]
[365122488,1749477045421,-7565.54593092,0.0002295,7]
[365122489,1749477045431,-7565.54593092,0.0002295,7]
[365122490,1749477045441,-213.08899333,0.0002295,7]
[365122491,1749477045450,-11856.04170836,0.0002295,7]
[365122492,1749477045460,-842.5625,0.0002295,7]
[365122493,1749477045469,-2621.96,0.00022953,2]
[365122494,1749477045478,-153.0,0.00022986,2]
[365122495,1749477045487,-153.0,0.00022986,2]
[365122496,1749477045496,-153.0,0.00022986,2]
[365122497,1749477045506,-153.0,0.00022986,2]
[365122498,1749477045515,-153.0,0.00022986,2]
[365122499,1749477045524,-159.8299132,0.00022986,2]
[365122500,1749477045533,-16000.0,0.00022993,2]
[365122501,1749477045542,-734.23,0.00022998,4]
[365122502,1749477045552,-12537.48396398,0.00023,2]
[365122503,1749477045565,-1000.0,0.00023,23]
[365122504,1749477045574,-200.0,0.00023,2]
[365122505,1749477045583,-440.0,0.00023013,4]
[365122506,1749477045592,-440.0,0.00023013,4]
[365122507,1749477045601,-420.0,0.00023013,4]
[365122508,1749477045612,-440.0,0.00023013,4]
[365122509,1749477045621,-440.0,0.00023013,4]
[365122510,1749477045631,-440.0,0.00023013,4]
[365122511,1749477045641,-440.0,0.00023013,4]
[365122512,1749477045650,-440.31890611,0.00023013,4]
[365122513,1749477045659,-500.0,0.00023013,4]
[365122514,1749477045668,-751.88,0.00023013,4]
[365122515,1749477045677,-502.12,0.00023013,4]
[365122516,1749477045687,-440.0,0.00023013,4]
[365122517,1749477045696,-440.0,0.00023013,4]
[365122518,1749477045705,-660.34,0.00023013,4]
[365122519,1749477045714,-440.0,0.00023013,4]
[365122520,1749477045723,-440.0,0.00023013,4]
[365122521,1749477045811,-440.0,0.00023013,4]
[365122522,1749477045821,-440.0,0.00023013,4]
[365122523,1749477045831,-440.0,0.00023013,4]
[365122524,1749477045840,-380.22298708,0.00023013,4]
[365122525,1749477045850,-440.0,0.00023013,4]
[365122526,1749477045861,-152.155345,0.00023013,7]
[365122527,1749477045870,-440.0,0.00023013,4]
[365122528,1749477045880,-440.0,0.00023013,4]
[365122529,1749477045889,-440.0,0.00023013,4]
[365122530,1749477045899,-440.0,0.00023013,4]
[365122531,1749477045908,-445.6,0.00023013,2]
[365122532,1749477045918,-440.0,0.00023013,4]
[365122533,1749477045928,-440.0,0.00023013,4]
[365122534,1749477045937,-440.0,0.00023013,4]
[365122535,1749477045947,-440.0,0.00023013,4]
[365122536,1749477045957,-151.0,0.00023013,7]
[365122537,1749477045966,-440.0,0.00023013,4]
[365122538,1749477045975,-440.0,0.00023013,4]
[365122539,1749477045987,-812.89,0.00023013,4]
[365122540,1749477045996,-440.0,0.00023013,4]
[365122541,1749477046005,-385.13,0.00023013,4]
[365122542,1749477046016,-1986.09,0.00023013,4]
[365122543,1749477046025,-2166.67,0.00023013,4]
[365122544,1749477046036,-534.37,0.00023013,4]
[365122545,1749477046045,-1134.73,0.00023013,4]
[365122546,1749477046055,-440.0,0.00023013,4]
[365122547,1749477046065,-400.0,0.00023013,2]
[365122548,1749477046074,-476.63,0.00023013,4]
[365122549,1749477046084,-2895.37,0.00023013,4]
[365122551,1749477046093,-803.7,0.00023013,4]
[365122553,1749477046103,-440.0,0.00023013,4]
[365122555,1749477046114,-440.0,0.00023013,4]
[365122556,1749477046123,-151.0,0.00023013,7]
[365122557,1749477046133,-5189.41,0.00023013,4]
[365122558,1749477046142,-4040.71,0.00023013,4]
[365122559,1749477046152,-5488.53,0.00023013,4]
[365122560,1749477046161,-440.0,0.00023013,4]
[365122562,1749477046171,-4634.71,0.00023013,4]
[365122563,1749477046180,-505.2,0.00023013,4]
[365122565,1749477046189,-813.91,0.00023013,4]
[365122567,1749477046199,-1278.93,0.00023013,4]
[365122568,1749477046207,-440.0,0.00023013,4]
[365122569,1749477046217,-440.0,0.00023013,4]
[365122570,1749477046226,-1111.71,0.00023013,4]
[365122571,1749477046236,-151.0,0.00023013,7]
[365122573,1749477046245,-151.0,0.00023013,7]
[365122574,1749477046254,-616.96,0.00023013,4]
[365122575,1749477046264,-1926.99,0.00023013,4]
[365122576,1749477046274,-691.44,0.00023013,4]
[365122577,1749477046283,-461.24,0.00023013,4]
[365122578,1749477046293,-440.0,0.00023013,4]
[365122579,1749477046302,-440.0,0.00023013,4]
[365122580,1749477046312,-767.06,0.00023013,4]
[365122581,1749477046322,-476.00904347,0.00023013,4]
[365122582,1749477046331,-440.0,0.00023013,4]
[365122583,1749477046341,-440.0,0.00023013,4]
[365122584,1749477046351,-2286.41,0.00023013,4]
[365122585,1749477046361,-537.17,0.00023013,4]
[365122586,1749477046370,-2033.87,0.00023013,4]
[365122587,1749477046380,-440.0,0.00023013,4]
[365122588,1749477046391,-843.42,0.00023013,4]
[365122589,1749477046400,-440.0,0.00023013,4]
[365122590,1749477046410,-557.97,0.00023013,4]
[365122591,1749477046420,-440.0,0.00023013,4]
[365122592,1749477046429,-2059.96,0.00023013,4]
[365122593,1749477046438,-840.31,0.00023013,4]
[365122594,1749477046448,-924.28,0.00023013,4]
[365122595,1749477046458,-500.0,0.00023013,2]
[365122596,1749477046468,-151.0,0.00023013,7]
[365122597,1749477046477,-9439.38,0.00023013,4]
[365122598,1749477046487,-440.0,0.00023013,4]
[365122599,1749477046497,-440.0,0.00023013,4]
[365122600,1749477046506,-1133.61,0.00023013,4]
[365122601,1749477046517,-151.0,0.00023013,7]
[365122602,1749477046526,-3861.59,0.00023013,4]
[365122603,1749477046536,-440.0,0.00023013,4]
[365122604,1749477046545,-789.8,0.00023013,4]
[365122605,1749477046556,-4323.6,0.00023013,4]
[365122606,1749477046568,-1123.87,0.00023013,4]
[365122607,1749477046578,-440.0,0.00023013,4]
[365122608,1749477046588,-440.0,0.00023013,4]
[365122609,1749477046599,-589.75,0.00023013,4]
[365122610,1749477046611,-151.0,0.00023013,7]
[365122611,1749477046622,-440.0,0.00023013,4]
[365122612,1749477046631,-151.0,0.00023013,7]
[365122613,1749477046643,-1966.76,0.00023013,4]
[365122614,1749477046653,-836.43,0.00023013,4]
[365122615,1749477046663,-151.0,0.00023013,7]
[365122616,1749477046673,-570.07,0.00023013,4]
[365122617,1749477046683,-440.0,0.00023013,4]
[365122618,1749477046692,-440.0,0.00023013,4]
[365122619,1749477046702,-787.22,0.00023013,4]
[365122620,1749477046712,-153.014895,0.00023013,7]
[365122621,1749477046721,-440.0,0.00023013,4]
[365122622,1749477046731,-500.0,0.00023021,2]
[365122623,1749477046741,-505.00855098,0.00023036,2]
[365122624,1749477046749,-500.0,0.00023036,2]
[365122625,1749477046758,-605.35301088,0.00023038,8]
[365122626,1749477046767,-1000.0,0.00023048,2]